Cogmind - Beta 16 @@@ ROGUE MODE // 2026.01.04 @ 23:58:17 Player: Qvest Result: Self-destructed Performance ------------- Evolutions (2) 1000 Regions Visited (3) 600 Robots Destroyed (19) 95 Value Destroyed (585) 585 Prototype IDs (1) 20 Alien Tech Used (0) 0 Bonus (0) 0 TOTAL SCORE: 2300 Bonus ------- None Cogmind --------- Core Integrity 478/550 Matter 422/450 Energy 153/160 System Corruption 0% Temperature Cool (0) Movement Rolling (105) Ox1 Location -8/Materials Parts ------- > --- POWER (1) -------- Light Nuclear Core > --- PROPULSION (4) --- Aluminum Leg Aluminum Leg Wheel Compact Wheel > --- UTILITY (4) ------ Large Storage Unit Large Matter Pod Seismic Detector Hardened Light Armor Plating > --- WEAPON (2) ------- Heavy Particle Gun Improved Light Cannon > --- INVENTORY (15) --- Ion Engine Light Ion Engine Aluminum Leg Aluminum Leg Aluminum Leg Carbon-fiber Leg Titanium Leg Large Storage Unit Compact Battery (200) Improved Signal Interpreter Seismic Detector Hardened Light Armor Plating Hardened Light Armor Plating Assault Rifle Plasma Cutter Peak State ------------ > --- POWER ------------ Light Nuclear Core > --- PROPULSION ------- Aluminum Leg Aluminum Leg Aluminum Leg Carbon-fiber Leg > --- UTILITY ---------- Large Storage Unit Large Matter Pod Seismic Detector Hardened Light Armor Plating > --- WEAPON ----------- Heavy Particle Gun Improved Light Cannon > --- INVENTORY -------- Ion Engine Light Ion Engine Aluminum Leg Aluminum Leg Aluminum Leg Aluminum Leg Aluminum Leg Titanium Leg Large Storage Unit Seismic Detector Hardened Light Armor Plating Hardened Light Armor Plating Field Recycling Unit Improved Light Cannon Plasma Cutter [Rating: 22] Favorites ----------- Power Ion Engine Engine Ion Engine Power Core Light Nuclear Core Propulsion Aluminum Leg Leg Aluminum Leg Wheel Compact Wheel Utility Large Storage Unit Device Seismic Detector Storage Large Storage Unit Protection Light Armor Plating Weapon Light Assault Rifle Energy Gun Small Laser Ballistic Gun Light Assault Rifle Ballistic Cannon Improved Light Cannon Build | -11 -10 -9 -8 ------- Run | Yrd Mat Mat Mat Slots Evolved 4 | . . 2 2 Power . | . . . . Propulsion 2 | . . 2 . Utility 2 | . . . 2 Weapon . | . . . . Parts Attached 38 | 7 11 1 19 Power 4 | 1 1 . 2 Engine 2 | 1 1 . . Core 2 | . . . 2 Reactor . | . . . . Propulsion 18 | 2 5 1 10 Treads . | . . . . Leg 14 | . 5 1 8 Wheel 4 | 2 . . 2 Hover . | . . . . Flight . | . . . . Utility 9 | 2 4 . 3 Device 3 | 1 1 . 1 Storage 3 | 1 1 . 1 Processor . | . . . . Hackware . | . . . . Protection 3 | . 2 . 1 Artifact . | . . . . Weapon 7 | 2 1 . 4 Energy Gun 2 | 1 . . 1 Energy Cannon . | . . . . Ballistic Gun 2 | 1 1 . . Ballistic Cannon 3 | . . . 3 Launcher . | . . . . Special Weapon . | . . . . Impact Weapon . | . . . . Slashing Weapon . | . . . . Piercing Weapon . | . . . . Special Melee Weapon . | . . . . Unidentified Prototypes 1 | . . . 1 Parts Lost 4 | . . . 4 Power . | . . . . Propulsion 1 | . . . 1 Utility 1 | . . . 1 Weapon 2 | . . . 2 Highest Loss Streak 3 | . . . 3 To Critical Strikes . | . . . . Average Backups 12 | 3 11 14 14 Power 1 | . 1 2 2 Propulsion 2 | 2 2 1 3 Utility 5 | . 4 7 5 Weapon 2 | . 2 3 2 Tool/Special . | . . . . Unused Backups 16 | . 7 . 9 Power 2 | . . . 2 Propulsion 4 | . 4 . . Utility 8 | . 2 . 6 Weapon 1 | . 1 . . Tool/Special 1 | . . . 1 Average Slot Usage (%) 99 | . 100 99 99 Engine 10 | . 14 11 5 Core 1 | . . . 3 Leg 30 | . 23 43 35 Wheel 2 | . 4 . . Device 7 | . 9 . 8 Storage 14 | . 14 11 18 Protection 6 | . 4 11 9 Energy Gun 9 | . 14 6 2 Ballistic Gun 12 | . 14 15 9 Ballistic Cannon 1 | . . . 5 Peak Build Rating 22 | 7 9 11 22 Average Rating 11 | 4 8 10 16 On Entrance 6 | . 7 9 11 Avg Prop Armor Cover (%) 11 | . . . 11 Naked Turns . | . . . . Heaviest Build 42 | 12 30 31 42 Greatest Support 47 | 26 26 40 47 Greatest Overweight (x) 2 | . 1 . 2 Average Overweight (x) . | . . . . Largest Inventory Capacity 15 | 8 15 15 15 Average Capacity 13 | 7 11 15 15 Most Carried 15 | 7 15 15 15 Average Carried 12 | 3 11 14 14 Final Capacity 15 | 8 15 15 15 Final Carried 15 | 6 15 15 15 Class Distribution -------------------- 54% | Mutant 45% | Scavenger-Mutant Dominant Class ---------------- Mutant | -10/Materials Scavenger-Mutant | -9/Materials Scavenger-Mutant | -8/Materials Resources | -11 -10 -9 -8 ----------- Run | Yrd Mat Mat Mat Matter Collected 1087 | 260 414 . 413 Remotely . | . . . . Salvage Created 748 | 30 328 . 390 Parts 43 | 1 23 . 19 Haulers Intercepted . | . . . . Recyclers Shooed 3 | 1 2 . . Parts Field Recycled . | . . . . Retrieved Matter . | . . . . Parts Self-Destructed . | . . . . Prevented . | . . . . Parts Restored . | . . . . Kills | -11 -10 -9 -8 ------- Run | Yrd Mat Mat Mat Combat Hostiles Destroyed 15 | . 8 . 7 Guns 12 | . 8 . 4 Cannons 3 | . . . 3 Classes Destroyed 6 | 1 3 . 2 Tunneler 1 | 1 . . . Recycler 2 | . 1 . 1 Mechanic 1 | . . . 1 Swarmer 3 | . 3 . . Grunt 11 | . 5 . 6 Hunter 1 | . . . 1 Best Kill Streak 3 | 1 3 . 3 Combat Bots Only 3 | . 3 . 3 Max Kills in Single Turn 2 | 1 1 . 2 Gunslinging . | . . . . Exploded . | . . . . Melee . | . . . . Uniques/NPCs Destroyed . | . . . . Combat | -11 -10 -9 -8 -------- Run | Yrd Mat Mat Mat Hostile Shots Fired 97 | . 35 . 62 Missed 21 | . 11 . 10 Hits 76 | . 24 . 52 Projectile 76 | . 24 . 52 Critical Strikes 2 | . . . 2 Damage Taken 1117 | . 280 . 837 Core 130 | . 58 . 72 Absorbed by Shields . | . . . . Core Remaining (%) 92 | 100 76 100 . Volleys Fired 76 | 2 30 . 44 Largest 2 | 2 2 . 2 Hottest 88 | 60 60 . 88 Shots Fired 146 | 4 60 . 82 Gun 128 | 4 60 . 64 Cannon 18 | . . . 18 Launcher . | . . . . Special . | . . . . Kinetic 102 | 2 30 . 70 Thermal 44 | 2 30 . 12 Explosive . | . . . . Electromagnetic . | . . . . Robot Hit Streak 15 | 2 7 . 15 Robot Miss Streak 5 | 1 3 . 5 Penetration Max . | . . . . Secondary Targets . | . . . . Shots Hit Robots 98 | 2 38 . 58 Core Hits 42 | 1 18 . 23 Critical Kills . | . . . . Critical Parts Destroyed . | . . . . Critical Strikes 1 | . . . 1 Blast 1 | . . . 1 Melee Attacks . | . . . . Impact . | . . . . Slashing . | . . . . Piercing . | . . . . Sneak Attacks . | . . . . Combat Hostiles . | . . . . Follow-up Attacks . | . . . . Damage Inflicted 1203 | 22 405 . 776 Guns 932 | 22 405 . 505 Cannons 266 | . . . 266 Explosions . | . . . . Melee . | . . . . Ramming 5 | . . . 5 Kinetic 870 | . 192 . 678 Thermal 328 | 22 213 . 93 Explosive . | . . . . Electromagnetic . | . . . . Impact . | . . . . Slashing . | . . . . Piercing . | . . . . Highest Corruption . | . . . . Average Corruption . | . . . . Corruption Purged . | . . . . Corruption Blocked . | . . . . Overload Shots . | . . . . Overflow Damage . | . . . . Projectiles . | . . . . Explosions . | . . . . Melee . | . . . . Knockbacks 6 | . . . 6 Impact . | . . . . Kinetic 5 | . . . 5 Secondary 1 | . . . 1 Self-Inflicted Damage . | . . . . Shots . | . . . . Rammed . | . . . . Targets Rammed 1 | . . . 1 Kicked 1 | . . . 1 Crushed . | . . . . Highest Temperature 150 | . 115 . 150 Average Temperature 35 | . 35 . 35 Received Heat Transfer 552 | . 138 . 414 Siege Activations . | . . . . Martial Activations . | . . . . Shielding Activations . | . . . . Robots Disrupted . | . . . . Combat Hostiles . | . . . . Robots Corrupted . | . . . . Combat Hostiles . | . . . . Parts Fried . | . . . . Impact Corruptions . | . . . . Robots Melted . | . . . . Combat Hostiles . | . . . . Parts Melted 1 | . 1 . . Heat Transferred 710 | 50 475 . 185 Parts Sabotaged . | . . . . Parts Stolen . | . . . . Parts Stripped . | . . . . Power Chain Reactions . | . . . . Alert | -11 -10 -9 -8 ------- Run | Yrd Mat Mat Mat Maximum Alert Level . | . . . . Low Security (%) 100 | 100 100 100 100 Level 1 . | . . . . Level 2 . | . . . . Level 3 . | . . . . Level 4 . | . . . . Level 5 . | . . . . High Security . | . . . . Max Security . | . . . . Peak Influence 71 | 5 71 . 61 Initial . | . . . . Average 14 | . 17 . 17 Influence Increases 426 | 5 211 . 210 Destroy 0b10 Robot/C 300 | . 160 . 140 Destroy 0b10 Robot/NC 20 | 5 5 . 10 Destroy Leader 60 | . 30 . 30 Successful Hack 14 | . . . 14 Destroy Structure 2 | . 1 . 1 Lose Combat Pursuer 30 | . 15 . 15 Influence Decreases 402 | 5 211 . 186 Time Decay 363 | 5 211 . 147 Lost Part 39 | . . . 39 Squads Dispatched 3 | . 1 . 2 Investigation 1 | . . . 1 Extermination . | . . . . Reinforcement 2 | . 1 . 1 Assault . | . . . . Garrison . | . . . . Intercept . | . . . . Searches Triggered . | . . . . Construction Impeded . | . . . . Haulers Reinforced . | . . . . Active Scanning Responses . | . . . . Cargo Convoy Interrupts . | . . . . Stealth | -11 -10 -9 -8 --------- Run | Yrd Mat Mat Mat Distress Signals 1 | . 1 . . Communications Jammed . | . . . . Distress Signals . | . . . . Times Spotted 30 | . 21 . 9 Peak Tracking Total 4 | . 4 . 3 Tactical Retreats 2 | . 1 . 1 Traps | -11 -10 -9 -8 ------- Run | Yrd Mat Mat Mat Traps Triggered 1 | . . . 1 Indirectly . | . . . . Trap Hack Attempts . | . . . . Triggered . | . . . . Disarmed . | . . . . Reprogrammed . | . . . . Reused . | . . . . Traps Extracted . | . . . . Installed . | . . . . Triggered . | . . . . Machines | -11 -10 -9 -8 ---------- Run | Yrd Mat Mat Mat Machines Disabled . | . . . . Max in Single Turn . | . . . . Machines Repaired . | . . . . Machines Dismantled . | . . . . Machines Sabotaged . | . . . . Overloaded Fab Kills . | . . . . Hacking | -11 -10 -9 -8 --------- Run | Yrd Mat Mat Mat Machines Accessed 1 | . . . 1 Terminals 1 | . . . 1 Fabricators . | . . . . Repair Stations . | . . . . Recycling Units . | . . . . Scanalyzers . | . . . . Garrison Access . | . . . . Total Hacks 4 | . . . 4 Successful 2 | . . . 2 Failed 2 | . . . 2 Catastrophic . | . . . . Database Lockouts . | . . . . Manual 4 | . . . 4 Terminals 4 | . . . 4 Fabricators . | . . . . Repair Stations . | . . . . Recycling Units . | . . . . Scanalyzers . | . . . . Garrison Access . | . . . . Terminal Hacks 2 | . . . 2 Part Schematic 2 | . . . 2 Fabricator Hacks . | . . . . Repair Station Hacks . | . . . . Recycling Unit Hacks . | . . . . Scanalyzer . | . . . . Garrison Access Hacks . | . . . . Unauthorized Hacks . | . . . . Terminals . | . . . . Fabricators . | . . . . Repair Stations . | . . . . Recycling Units . | . . . . Scanalyzers . | . . . . Garrison Access . | . . . . Data Cores Recovered . | . . . . Used . | . . . . Hacking Detections . | . . . . Full Trace Events . | . . . . Feedback Events . | . . . . Feedback Blocked . | . . . . Robot Schematics Acquired . | . . . . Robots Built . | . . . . Authchips . | . . . . Time . | . . . . Total Robot Build Rating . | . . . . Part Schematics Acquired 2 | . . . 2 Parts Built . | . . . . Authchips . | . . . . Time . | . . . . Total Part Build Rating . | . . . . Part Studies Acquired . | . . . . Parts Repaired . | . . . . Time . | . . . . Parts Recycled . | . . . . Recycled Matter . | . . . . Retrieved Matter . | . . . . Retrieved Components . | . . . . Parts Scanalyzed . | . . . . Part Schematics Acquired . | . . . . Parts Damaged . | . . . . Bothacking | -11 -10 -9 -8 ------------ Run | Yrd Mat Mat Mat Used RIF Installer . | . . . . Robots Hacked . | . . . . Non-combat . | . . . . Combat . | . . . . Robot Hacks Applied . | . . . . Relay Couplers Released . | . . . . Fabnet Peak Effective % . | . . . . Robots Rewired . | . . . . Allies Hacked . | . . . . Hacks Repelled . | . . . . Allies | -11 -10 -9 -8 -------- Run | Yrd Mat Mat Mat Total Allies . | . . . . Largest Group . | . . . . Highest-Rated Group . | . . . . Highest-Rated Ally . | . . . . Total Orders . | . . . . Ally Attacks . | . . . . Total Damage . | . . . . Kills . | . . . . Allies Corrupted . | . . . . Allies Melted . | . . . . Intel | -11 -10 -9 -8 ------- Run | Yrd Mat Mat Mat Active Infowar (turns) 964 | 3 506 . 455 Seismic 964 | 3 506 . 455 Robot Analysis Total . | . . . . Derelict Logs Recovered . | . . . . Drone Launches . | . . . . Drone Recoveries . | . . . . Exploration | -11 -10 -9 -8 ------------- Run | Yrd Mat Mat Mat Turns Passed 1459 | 65 740 198 456 Spaces Moved 776 | 47 391 158 180 Core 1 | 1 . . . Treads . | . . . . Legs 627 | . 291 158 178 Wheels 148 | 46 100 . 2 Hover . | . . . . Flight . | . . . . Fastest Speed 50 | 50 90 120 120 Average Speed 131 | 89 142 120 128 Slowest Speed 260 | 100 190 120 260 Overloaded Moves . | . . . . Propulsion Burnouts . | . . . . Robots Hopped . | . . . . Potential Cave-ins . | . . . . Cave-ins Triggered . | . . . . Exploration Rate (%) 16 | 4 36 18 9 Regions Visited 3 Branch Regions . Pre-discovered Areas . | . . . . Known Exits Taken . | . . . . Unknown Exits Taken 3 | 1 1 1 . Scrap Searched . | . . . . Spaces Dug . | . . . . Terrain Destroyed . | . . . . Melee . | . . . . Projectile . | . . . . AOE . | . . . . Terrain Rammed . | . . . . Walls Destroyed . | . . . . Machines Disabled . | . . . . Actions | -11 -10 -9 -8 --------- Run | Yrd Mat Mat Mat Total 1084 | 62 529 167 326 Wait 126 | . 62 . 64 Move 773 | 46 390 157 180 Hop . | . . . . Pick Up 33 | 7 19 3 4 Fast Attach 9 | 6 . 1 2 Attach 9 | 1 . 2 6 Detach 1 | . . 1 . Swap 27 | . 11 1 15 Drop 29 | . 17 2 10 Fire 76 | 2 30 . 44 Melee . | . . . . Ram . | . . . . Kick 1 | . . . 1 Crush . | . . . . Escape Stasis . | . . . . Rewire . | . . . . Trap . | . . . . Miscellaneous . | . . . . Route ------- -11/Scrapyard -10/Materials (discovered 2 exits: [*Mat] / [*Min]) -9/Materials -8/Materials History --------- Turn | Location | Event 27 | -11/Scrapyard | Discovered new exit (range 15) 66 | -11/Scrapyard | Entered Materials 181 | -10/Materials | Discovered new exit (range 16) 314 | -10/Materials | Build established: Mutant 453 | -10/Materials | Discovered new exit (range 15) 806 | -10/Materials | Entered another Materials area 806 | -9/Materials | Evolved 2 slots: Propulsion x2 971 | -9/Materials | Discovered new exit (range 8) 1004 | -9/Materials | Entered another Materials area 1004 | -8/Materials | Evolved 2 slots: Utility x2 1096 | -8/Materials | Build established: Scavenger-Mutant 1284 | -8/Materials | Lost 3 parts (1n2w) 1460 | -8/Materials | Self-destructed Last Messages --------------- 01378_ Slug penetrates Integration Channel. 01407_ H-55 Commando knocked back. 01410_ Penetrated by Slug. 01416_ H-55 Commando knocked back. 01419_ Penetrated by Slug. 01419_ H-55 Commando destroyed. 01426_ Dropped Aluminum Leg. 01429_ Acquired 45 matter. 01440_ Acquired 1 matter. 01442_ Kicked M-13 Machinist out of the way. 01444_ R-06 Scavenger destroyed. 01444_ M-13 Machinist destroyed. 01448_ Dropped Imp. Light Cannon. 01449_ Acquired Assault Rifle. 01450_ Acquired 78 matter. 01451_ Dropped Aluminum Leg. 01451_ Dropped Carbon-fiber Leg. 01454_ Acquired Com. Wheel. 01456_ Acquired 20 matter. 01459_ Acquired Wheel. Map ----- +----------------------------------------------------+ | ???????????????????????????????????? | | ???????????????????????????????????? | | ?????????????????###############???? | | ?????????????????# #???? | | ?????????????????# "#???? | | ?????????????????# """ """ T#???? | | ?????????????????# """ """ "#???? | | ?????????????????# """ """ #???? | | ?????????????????# !=![ #???? | | ?????????????########"###########??? | | ?????????????? ?#* * #??? | | ????????????? """ # ! ######## #??? | | ????????????# """ # #??????# #??? | | ????????????# """ " #??????# #??? | | ????????????# # #??????# #??? | | ????????????# # #??????# #??? | | ????????????######?# ######## #??? | | ???????????????????# # # #??? | | ???????????????????# #= # #??? | | ???????????????????# # """# #??? | | ???????????????????# + """# #??? | | ???????????????????# # """# #??? | | ???????????????????# #]! # #??? | | ???????????????????# ########=#??? | | ????????????? ????# ########!#??? | | ?????????????""""??# *@ ==!]#??? | | ?????????????""""" # ##########??? | | ?????????????""""" + #???????????? | | ???????????# # #???????????? | | ???????????# ?# #???????????? | | ???????????######### #####???????? | | ???? #???????? | | ???? #???????? | | ???? #???????? | | ????? " """ #####???????? | | ????? """"""""" #???????????? | | ?????? """"" #???????????? | | ?????? ?? #???????????? | | ??????????? ? #???????????? | | ?????????? ?? #???????????? | | ?????????? ?? #???????????? | | ?????????????? #???????????? | | ?????????????? #???????????? | | ??????????????? " #???????????? | | ???????????????? T +???????????? | | ??????????????????? " #???????????? | | ?????????????????????? ????????????? | | ???????????????????????????????????? | | ???????????????????????????????????? | | ???????????????????????????????????? | +----------------------------------------------------+ Best States ------------- Heat Dissipation 31 Energy Generation 14 Energy Capacity 250 Matter Stores 422 Matter Capacity 450 Sight Range 16 Terrain Scan Density 10 Armor Coverage 150 Evasion (%) 55 Item Schematics ----------------- Hcp. Storage Unit | -8/Materials | Hacked Arm. Wheel | -8/Materials | Hacked Robot Schematics ------------------ None Fabricated ------------ Nothing Repaired ---------- Nothing Studied --------- None Alien Tech Used ----------------- None Achievements -------------- None Challenges ------------ None Game ------ Seed ReactionSlugPropulsion Manual? 0 Play Time 00:18:58 Cumulative 37.4 hours Start 2026.01.04 @ 23:38:41 End 2026.01.04 @ 23:58:17 Sessions 1 Manual Loads 0 Difficulty Rogue Special Mode None Game No. 15 Rogue 15 Adventurer 0 Explorer 0 Win Type - Total 0 Types 0/0/0/0/0/0/0/0/0/0 Lore% 5 Gallery% 19 Achievement% 15 Wizard Run 0 Options --------- Layout 1 ASCII 0 Keyboard 0 Movement Arrows Keybinds 0 Fullscreen 1 Font 24/Smallcaps Map View 50x35 Zoom Use 0% Tactical HUD 1 Map Filters NONE Filters NONE Steam 1 RUN: 3a74c83f-a5df-4bff-b987-a384d8ab0adf